Cogmind - Beta 11 @@@ ROGUE MODE // 2022.04.13 @ 16:05:37 Player: DaddyWalrus Result: Destroyed by 8R-AWN with 8R-AWN's Boregun Performance ------------- Evolutions (0) 0 Regions Visited (3) 600 Robots Destroyed (28) 140 Value Destroyed (670) 670 Prototype IDs (23) 460 Alien Tech Used (0) 0 Bonus (-160) -160 TOTAL SCORE: 1710 Bonus ------- Aligned with FarCom 300 Friendly Fire -460 Cogmind --------- Core Integrity 0/250 Matter 225/300 Energy 100/100 System Corruption 0% Temperature Cool (0) Movement Rolling (115) Ox1 Location -10/Exiles Parts ------- > --- POWER (1) -------- (None) > --- PROPULSION (2) --- Compact Wheel Compact Wheel > --- UTILITY (2) ------ High-capacity Storage Unit > --- WEAPON (2) ------- Field Lobotomy Kit Mining Claw > --- INVENTORY (20) --- Ion Engine Light Ion Engine Light Treads Light Treads Light Treads Wheel Wheel Wheel Compact Wheel Heat Sink High-capacity Matter Pod (200) Trap Reconfigurator Supersonic Drone Bay (1/1) Light Cannon Light Cannon Grenade Launcher Peak State ------------ > --- POWER ------------ (None) > --- PROPULSION ------- Compact Wheel Compact Wheel > --- UTILITY ---------- High-capacity Storage Unit > --- WEAPON ----------- Field Lobotomy Kit Mining Claw > --- INVENTORY -------- Ion Engine Light Ion Engine Light Treads Light Treads Light Treads Wheel Wheel Wheel Compact Wheel Heat Sink High-capacity Matter Pod Trap Reconfigurator Supersonic Drone Bay Light Cannon Light Cannon Grenade Launcher [Rating: 17] Favorites ----------- Power Ion Engine Engine Ion Engine Power Core Light Nuclear Core Propulsion Compact Wheel Treads Light Treads Wheel Compact Wheel Utility High-capacity Storage Unit Device Heat Sink Storage High-capacity Storage Unit Protection Light Armor Plating Weapon Small Laser Energy Gun Small Laser Ballistic Gun Assault Rifle Launcher Grenade Launcher Special Weapon Field Lobotomy Kit Slashing Weapon Mining Claw Build | -11 -10 -10 -10 ------- Run | Scr Mat Min Exi Slots Evolved . | . . . . Power . | . . . . Propulsion . | . . . . Utility . | . . . . Weapon . | . . . . Parts Attached 31 | 7 18 . 6 Power 3 | 1 2 . . Engine 2 | 1 1 . . Core 1 | . 1 . . Reactor . | . . . . Propulsion 9 | 2 7 . . Treads 3 | . 3 . . Leg . | . . . . Wheel 6 | 2 4 . . Hover . | . . . . Flight . | . . . . Utility 7 | 2 3 . 2 Device 2 | 1 1 . . Storage 2 | 1 1 . . Processor . | . . . . Hackware . | . . . . Protection 3 | . 1 . 2 Artifact . | . . . . Weapon 12 | 2 6 . 4 Energy Gun 8 | 1 6 . 1 Energy Cannon . | . . . . Ballistic Gun 1 | 1 . . . Ballistic Cannon . | . . . . Launcher 1 | . . . 1 Special Weapon 1 | . . . 1 Impact Weapon . | . . . . Slashing Weapon 1 | . . . 1 Piercing Weapon . | . . . . Special Melee Weapon . | . . . . Unidentified Prototypes . | . . . . Parts Lost 11 | . 6 . 5 Power 2 | . 1 . 1 Propulsion 1 | . 1 . . Utility 3 | . 1 . 2 Weapon 5 | . 3 . 2 Highest Loss Streak 5 | . 3 . 5 To Critical Strikes 1 | . . . 1 Average Slot Usage (%) 97 | . 97 100 96 Engine 12 | . 11 14 13 Core 1 | . 2 . . Treads 5 | . 12 . . Wheel 22 | . 15 28 28 Device 11 | . 9 14 13 Storage 14 | . 14 14 14 Protection 1 | . 4 . . Energy Gun 24 | . 20 28 25 Ballistic Gun 2 | . 5 . . Naked Turns . | . . . . Heaviest Build 51 | 14 51 49 50 Greatest Support 40 | 20 40 32 32 Greatest Overweight (x) 4 | 4 2 1 1 Average Overweight (x) . | . . 1 1 Largest Inventory Capacity 20 | 8 20 20 20 Average Capacity 18 | 7 16 20 20 Most Carried 20 | 7 19 20 20 Average Carried 15 | 4 10 19 18 Final Capacity 20 | 8 20 20 20 Final Carried 20 | 7 19 20 16 Class Distribution -------------------- 100% | Mutant Dominant Class ---------------- Mutant | -10/Materials Mutant | -10/Mines Mutant | -10/Exiles Resources | -11 -10 -10 -10 ----------- Run | Scr Mat Min Exi Matter Collected 690 | 222 448 20 . Remotely . | . . . . Salvage Created 1117 | 14 833 260 10 Parts 66 | 4 48 14 . Haulers Intercepted 2 | . 2 . . Recyclers Shooed 1 | . 1 . . Parts Field Recycled . | . . . . Retrieved Matter . | . . . . Parts Self-Destructed . | . . . . Prevented . | . . . . Kills | -11 -10 -10 -10 ------- Run | Scr Mat Min Exi Combat Hostiles Destroyed 17 | . 12 2 3 Guns 13 | . 11 2 . AOE 4 | . 1 . 3 Classes Destroyed 8 | 1 6 . 1 Worker 3 | . 1 2 . Tunneler 1 | 1 . . . Hauler 2 | . 2 . . Recycler 2 | . 1 1 . Operator 3 | . 3 . . Watcher 3 | . 3 . . Grunt 14 | . 12 2 . Assembled 6 | . . . 6 Best Kill Streak 6 | 1 6 2 3 Combat Bots Only 6 | . 6 1 3 Max Kills in Single Turn 3 | 1 2 2 3 Gunslinging . | . . . . Exploded 2 | . 1 . 2 Melee . | . . . . Uniques/NPCs Destroyed . | . . . . Combat | -11 -10 -10 -10 -------- Run | Scr Mat Min Exi Damage Taken 1624 | . 1018 63 543 Core 259 | . 84 18 157 Absorbed by Shields . | . . . . Core Remaining (%) 100 | 100 . . . Volleys Fired 97 | 1 79 11 6 Largest 2 | 2 2 2 2 Hottest 90 | 60 90 80 80 Shots Fired 175 | 2 144 22 7 Gun 170 | 2 144 22 2 Cannon . | . . . . Launcher 4 | . . . 4 Special 1 | . . . 1 Kinetic 35 | 1 34 . . Thermal 116 | 1 103 11 1 Explosive 4 | . . . 4 Electromagnetic 19 | . 7 11 1 Robot Hit Streak 12 | 1 12 9 1 Robot Miss Streak 3 | 1 3 1 2 Penetration Max . | . . . . Secondary Targets 5 | . 5 . . Max Gunslinging Chain 1 | . 1 . . Shots Hit Robots 127 | 1 107 16 3 Core Hits 60 | 1 42 7 10 Critical Kills . | . . . . Critical Parts Destroyed 1 | . 1 . . Critical Strikes 3 | . 3 . . Burn 2 | . 2 . . Destroy 1 | . 1 . . Melee Attacks 3 | . . . 3 Impact . | . . . . Slashing 3 | . . . 3 Piercing . | . . . . Sneak Attacks . | . . . . Combat Hostiles . | . . . . Follow-up Attacks . | . . . . Damage Inflicted 2059 | 22 1495 208 334 Guns 1486 | 22 1256 208 . Cannons . | . . . . Explosions 526 | . 239 . 287 Melee 47 | . . . 47 Ramming . | . . . . Kinetic 343 | 10 333 . . Thermal 1006 | 12 895 99 . Explosive 526 | . 239 . 287 Electromagnetic 137 | . 28 109 . Impact . | . . . . Slashing 47 | . . . 47 Piercing . | . . . . Highest Corruption . | . . . . Average Corruption . | . . . . Corruption Purged . | . . . . Corruption Blocked . | . . . . Overload Shots . | . . . . Overflow Damage 27 | . 25 . 2 Projectiles . | . . . . Explosions 27 | . 25 . 2 Melee . | . . . . Knockbacks . | . . . . Impact . | . . . . Kinetic . | . . . . Secondary . | . . . . Self-Inflicted Damage 74 | . 74 . . Shots 1 | . 1 . . Rammed . | . . . . Targets Rammed . | . . . . Kicked . | . . . . Crushed . | . . . . Highest Temperature 252 | . 252 7 . Average Temperature 84 | . 88 3 . Received Heat Transfer 591 | . 555 36 . Siege Activations . | . . . . Robots Corrupted . | . . . . Combat Hostiles . | . . . . Parts Fried . | . . . . Impact Corruptions . | . . . . Robots Melted . | . . . . Combat Hostiles . | . . . . Parts Melted 3 | . 3 . . Heat Transferred 2659 | 25 2409 225 . Parts Sabotaged . | . . . . Parts Stolen . | . . . . Parts Stripped . | . . . . Power Chain Reactions . | . . . . Missiles Intercepted . | . . . . Alert | -11 -10 -10 -10 ------- Run | Scr Mat Min Exi Peak Influence 299 | 5 299 133 . Initial 68 | . 3 68 . Average 135 | . 162 89 . Maximum Alert Level 1 | . 1 . . Low Security (%) 81 | 100 72 100 . Level 1 18 | . 27 . . Level 2 . | . . . . Level 3 . | . . . . Level 4 . | . . . . Level 5 . | . . . . High Security . | . . . . Max Security . | . . . . Squads Dispatched 4 | . 4 . . Investigation . | . . . . Extermination . | . . . . Reinforcement 4 | . 4 . . Assault . | . . . . Garrison . | . . . . Intercept . | . . . . Searches Triggered . | . . . . Construction Impeded . | . . . . Haulers Reinforced . | . . . . Active Scanning Responses . | . . . . Cargo Convoy Interrupts . | . . . . Stealth | -11 -10 -10 -10 --------- Run | Scr Mat Min Exi Distress Signals 1 | . 1 . . Communications Jammed . | . . . . Distress Signals . | . . . . Times Spotted 32 | . 25 2 5 Peak Tracking Total 8 | . 8 1 5 Tactical Retreats . | . . . . Traps | -11 -10 -10 -10 ------- Run | Scr Mat Min Exi Traps Triggered 1 | . 1 . . Indirectly . | . . . . Trap Hack Attempts . | . . . . Triggered . | . . . . Disarmed . | . . . . Reprogrammed . | . . . . Reused 2 | . . . 2 Traps Extracted . | . . . . Installed 4 | . . . 4 Triggered . | . . . . Most Traps Carried 4 | . . 4 4 Machines | -11 -10 -10 -10 ---------- Run | Scr Mat Min Exi Machines Disabled 5 | . 2 . 3 Max in Single Turn 1 | . 1 . 1 Machines Sabotaged . | . . . . Garrisons Compromised . | . . . . Overloaded Fab Kills . | . . . . Hacking | -11 -10 -10 -10 --------- Run | Scr Mat Min Exi Machines Accessed 1 | . . . 1 Terminals . | . . . . Fabricators . | . . . . Repair Stations . | . . . . Recycling Units . | . . . . Scanalyzers . | . . . . Garrison Access . | . . . . Total Hacks 1 | . . . 1 Successful 1 | . . . 1 Failed . | . . . . Catastrophic . | . . . . Database Lockouts . | . . . . Manual 1 | . . . 1 Terminals . | . . . . Fabricators . | . . . . Repair Stations . | . . . . Recycling Units . | . . . . Scanalyzers . | . . . . Garrison Access . | . . . . Terminal Hacks 1 | . . . 1 EX-Prototype ID Bank 1 | . . . 1 Fabricator Hacks . | . . . . Repair Station Hacks . | . . . . Recycling Unit Hacks . | . . . . Scanalyzer . | . . . . Garrison Access Hacks . | . . . . Unauthorized Hacks . | . . . . Terminals . | . . . . Fabricators . | . . . . Repair Stations . | . . . . Recycling Units . | . . . . Scanalyzers . | . . . . Garrison Access . | . . . . Data Cores Recovered . | . . . . Used . | . . . . Hacking Detections . | . . . . Full Trace Events . | . . . . Feedback Events . | . . . . Feedback Blocked . | . . . . Robot Schematics Acquired . | . . . . Robots Built . | . . . . Authchips . | . . . . Time . | . . . . Total Robot Build Rating . | . . . . Part Schematics Acquired . | . . . . Parts Built . | . . . . Authchips . | . . . . Time . | . . . . Total Part Build Rating . | . . . . Parts Repaired . | . . . . Time . | . . . . Parts Recycled . | . . . . Recycled Matter . | . . . . Retrieved Matter . | . . . . Retrieved Components . | . . . . Parts Scanalyzed . | . . . . Part Schematics Acquired . | . . . . Parts Damaged . | . . . . Bothacking | -11 -10 -10 -10 ------------ Run | Scr Mat Min Exi Used RIF Installer . | . . . . Robots Hacked . | . . . . Non-combat . | . . . . Combat . | . . . . Robot Hacks Applied . | . . . . Relay Couplers Released . | . . . . Fabnet Peak Effective % . | . . . . Robots Rewired . | . . . . Allies Hacked . | . . . . Hacks Repelled . | . . . . Allies | -11 -10 -10 -10 -------- Run | Scr Mat Min Exi Total Allies 2 | . . 2 . Largest Group 2 | . . 2 2 Highest-Rated Group 46 | . . 46 46 Highest-Rated Ally 31 | . . 31 31 Total Orders . | . . . . Ally Attacks . | . . . . Total Damage . | . . . . Kills . | . . . . Allies Corrupted . | . . . . Allies Melted . | . . . . Intel | -11 -10 -10 -10 ------- Run | Scr Mat Min Exi Robot Analysis Total . | . . . . Derelict Logs Recovered 1 | . . 1 . Drone Launches . | . . . . Drone Recoveries . | . . . . Exploration | -11 -10 -10 -10 ------------- Run | Scr Mat Min Exi Turns Passed 2595 | 61 1119 485 930 Spaces Moved 1818 | 45 637 371 765 Core 16 | 16 . . . Treads 135 | . 135 . . Legs . | . . . . Wheels 1667 | 29 502 371 765 Hover . | . . . . Flight . | . . . . Fastest Speed 50 | 50 80 115 115 Average Speed 117 | 89 125 115 115 Slowest Speed 250 | 250 240 115 115 Overloaded Moves . | . . . . Propulsion Burnouts . | . . . . Robots Hopped . | . . . . Cave-ins Triggered . | . . . . Exploration Rate (%) 66 | 3 94 84 84 Regions Visited 3 Branch Regions 2 Pre-discovered Areas . | . . . . Known Exits Taken . | . . . . Unknown Exits Taken 3 | 1 1 1 . Scrap Searched 2 | . . 2 . Spaces Dug . | . . . . Terrain Destroyed 29 | . 23 . 6 Melee . | . . . . Projectile . | . . . . AOE 29 | . 23 . 6 Terrain Rammed . | . . . . Walls Destroyed . | . . . . Machines Disabled . | . . . . Actions | -11 -10 -10 -10 --------- Run | Scr Mat Min Exi Total 2089 | 59 812 413 805 Wait 76 | . 55 15 6 Move 1815 | 44 636 370 765 Hop . | . . . . Pick Up 41 | 7 18 9 7 Fast Attach 10 | 7 3 . . Attach 8 | . 5 . 3 Detach . | . . . . Swap 13 | . 10 . 3 Drop 22 | . 6 8 8 Fire 97 | 1 79 11 6 Melee 3 | . . . 3 Ram . | . . . . Kick . | . . . . Crush . | . . . . Escape Stasis . | . . . . Rewire . | . . . . Trap 4 | . . . 4 Miscellaneous . | . . . . Route ------- -11/Scrapyard -10/Materials (discovered 4 exits: [*Mat x3] / [*Min]) -10/Mines (discovered 2 exits: [*Mat] / *Exi) -10/Exiles (discovered 2 exits: [*Min x2]) History --------- Turn | Location | Event 17 | -11/Scrapyard | Discovered new exit (range 15) 62 | -11/Scrapyard | Entered Materials 147 | -10/Materials | Discovered new exit (range 16) 286 | -10/Materials | Discovered new exit (range 10) 300 | -10/Materials | Build established: Mutant 501 | -10/Materials | Lost 3 parts (1p1u1w) 852 | -10/Materials | Discovered new exit (range 16) 1015 | -10/Materials | Discovered new exit (range 11) 1181 | -10/Materials | Entered Mines 1232 | -10/Mines | Met a Derelict bent on vengeance 1390 | -10/Mines | Discovered new exit (range 7) 1438 | -10/Mines | Found a hidden stash of uninstalled traps 1647 | -10/Mines | Deemed a non-threat by the Exiles lab entrance 1647 | -10/Mines | Discovered new exit (range 5) 1666 | -10/Mines | Entered Exiles 1666 | -10/Exiles | Accompanied by 2 allies 1694 | -10/Exiles | Met 8R-AWN 1696 | -10/Exiles | Led the pair of lost Derelicts to a safe place 1715 | -10/Exiles | Met EX-HEX 1749 | -10/Exiles | Met EX-BIN 1765 | -10/Exiles | Aligned with FarCom system 1767 | -10/Exiles | Given EX-Vault access code 1794 | -10/Exiles | Opened EX-Vault 1825 | -10/Exiles | Warned to stay clear of 0b10 Research branches 2042 | -10/Exiles | Found Field Lobotomy Kit 2045 | -10/Exiles | Found Supersonic Drone Bay 2053 | -10/Exiles | Found Trap Reconfigurator 2124 | -10/Exiles | Met EX-DEC 2199 | -10/Exiles | Visited The Gauntlet 2342 | -10/Exiles | Discovered new exit (range 10) 2464 | -10/Exiles | Discovered new exit (range 14) 2517 | -10/Exiles | Attacked by the Exiles 2533 | -10/Exiles | Core integrity fell below 50% 2582 | -10/Exiles | Core integrity fell below 20% 2587 | -10/Exiles | Lost 5 parts (1p2u2w) 2596 | -10/Exiles | Destroyed by 8R-AWN with 8R-AWN's Boregun Last Messages --------------- 02570_ HV Slug penetrates Wall. 02570_ HV Slug penetrates Machine. 02570_ Machine disabled. 02574_ Penetrated by HV Slug. 02574_ HV Slug penetrates Wall. 02576_ Penetrated by HV Slug. 02576_ HV Slug penetrates Wall. 02576_ Penetrated by HV Slug. 02576_ HV Slug penetrates Wall. 02581_ Penetrated by HV Slug. 02581_ HV Slug penetrates Wall. 02583_ Penetrated by HV Slug. 02583_ HV Slug penetrates Machine. 02583_ Machine disabled. 02585_ Penetrated by HV Slug. 02586_ 8R-AWN unaffected by assimilation attempt. 02587_ HV Slug penetrates Wall. 02587_ Penetrated by HV Slug. 02592_ HV Slug penetrates Wall. 02596_ Penetrated by HV Slug. Map ----- +----------------------------------------------------+ | """"#???????????????????????????????????????????? | | """"#???????????????????????????????????????????? | | """#???????????????????????????????????????????? | | """#???????????????????????????????????????????? | | """#???????????????????????????????????????????? | | """#???????????????????????????????????????????? | | """##??????????????????????????????????????????? | | """""??????????????????????????????????????????? | | """##??????????????????????????????????????????? | | " """"???????????????????????????????????????????? | | " #???????????????????????????????????????????? | | """""#???????????????????????????????????????????? | | ######???????????????????????????????????????????? | | ?????????????????????????????????????????????????# | | ????????????????????????????????????????????????# | | ???????????????????????????????????????????????? | | ?###########????????????????????##?????????????? | | ##"""" """"##?????????????????## #?????????????? | | " """ """"##???????????????## #?????????????## | | "" " #??????????????## ###???????????## | | " """#??????????????# ## #???????????# | | "#???????????##### ###??????????# | | " "##?????????##" ; #?????????## | | "###???????#" ;#####????????## | | ""#????#### g^ ## #?????????# | | "#????#;; @^ ;##????????### # | | ##???# ########## # | | ##?## #""""## ## | | " !!! ##; ## | | !!%! ;# # | | !!* #### # | | "#?#" """#### | | #" "##?#######??#### | | ######??????????????##### | | ##???????????????????????### | | " % #??????????????????????????### | | """ * * * ##????????????????????????????### | | " ""# ??????????????????????????????#" | | "" """##" " # ??????????????????????????????## | | #""""#?###########???????????????????????????????? | | ####?????????????????????????????????????????????? | | ?????????????????????????????????????????????????? | | ?????????????????????????????????????????????????? | | ?????????????????????????????????????????????????? | | ?????????????????????????????????????????????????? | | ?????????????????????????????????????????????????? | | ?????????????????????????????????????????????????? | | ?????????????????????????????????????????????????? | | ?????????????????????????????????????????????????? | | ?????????????????????????????????????????????????? | +----------------------------------------------------+ Best States ------------- Heat Dissipation 35 Energy Generation 14 Energy Capacity 250 Matter Stores 300 Matter Capacity 300 Sight Range 16 Terrain Scan Range 16 Terrain Scan Density 10 Armor Coverage 150 Evasion (%) 44 Recoil Reduction 2 Item Schematics ----------------- None Robot Schematics ------------------ None Fabricated ------------ Nothing Alien Tech Used ----------------- None Achievements -------------- None Challenges ------------ None Game ------ Seed CompositeMetafiberTrap Manual? 0 Play Time 00:30:03 Cumulative 191.2 hours Start 2022.04.13 @ 14:53:06 End 2022.04.13 @ 16:05:37 Sessions 1 Manual Loads 0 Difficulty Rogue Special Mode None Game No. 73 Rogue 73 Adventurer 0 Explorer 0 Win Type - Total 2 Types 1/0/1/0/0/0/0/0/0 Lore% 59 Gallery% 70 Achievement% 53 Wizard Run 0 Options --------- ASCII 1 Keyboard 1 Movement Numpad Keybinds 0 Fullscreen 1 Font 36/Smallcaps Map View 76x50 Tactical HUD 1 Map Filters NONE Filters NONE Steam 1 RUN: a8b4ca83-77b7-4f5c-9320-c375cca4eb08